Cogmind - Beta 13 @@@ ROGUE MODE // 2024.03.11 @ 14:52:06 Player: Nika Jay Result: Destroyed by C-57 Dissector with Dual-blade Saw Performance ------------- Evolutions (8) 4000 Regions Visited (25) 5000 Robots Destroyed (133) 665 Value Destroyed (4184) 4184 Prototype IDs (30) 600 Alien Tech Used (0) 0 Bonus (4700) 4700 TOTAL SCORE: 19149 Bonus ------- High Alert Combat Kills 8 Follower Combat Kills 112 Entered Garrisons 1400 Used RIF Installer 2000 Entered DSFs 1500 Aligned with FarCom 300 Friendly Fire -620 Cogmind --------- Core Integrity 0/1450 Matter 7/300 Energy 27/100 System Corruption 3% Temperature Cool (0) Movement Flying (40) Location -2/DSF Parts ------- > --- POWER (2) -------- (None) > --- PROPULSION (6) --- Impulse Thruster > --- UTILITY (13) ----- Advanced Melee Analysis Suite > --- WEAPON (2) ------- (None) > --- INVENTORY (5) ---- Improved Gyrokinetic Inverter Advanced Signal Interpreter Dual-blade Saw Peak State ------------ > --- POWER ------------ Quantum Reactor > --- PROPULSION ------- Advanced Heavy Siege Treads Advanced Heavy Siege Treads Centrium Leg Improved Gyrokinetic Inverter > --- UTILITY ---------- High-capacity Storage Unit Advanced Melee Analysis Suite Improved System Shield Relay Coupler [NC] Relay Coupler [Specialist] > --- WEAPON ----------- Phase Gun Fusion Bomb Launcher > --- INVENTORY -------- Gyrokinetic Inverter Improved Linear Gravjet Impulse Thruster Impulse Thruster Advanced Signal Interpreter Relay Coupler [NC] Relay Coupler [Grunt] Fusion Bomb Launcher [Rating: 97] Favorites ----------- Power Light Nuclear Core Engine Light Deuterium Engine Power Core Light Nuclear Core Reactor Quantum Reactor Propulsion Wheel Treads Armored Treads Leg Centrium Leg Wheel Wheel Hover Unit Improved Gyrokinetic Inverter Flight Unit Surge Thruster Utility Huge Storage Unit Device ECM Suite Storage Huge Storage Unit Processor Melee Analysis Suite Hackware Relay Coupler [NC] Protection Improved Light Armor Plating Weapon Axe Energy Gun Particle Gun Energy Cannon Enhanced Nova Cannon Ballistic Gun Makeshift Shrapnel Gun Ballistic Cannon Assault Cannon Launcher Fusion Bomb Launcher Special Weapon Remote Datajack Slashing Weapon Axe Special Melee Weapon Improved Datajack Build | -11 -10 -10 -10 -9 -8 -7 -7 -7 -7 -6 -6 -5 -5 -4 -4 -4 -4 -3 -3 -3 -3 -2 -2 -2 -2 ------- Run | Yrd Mat Min Exi Min Mat Fac Gar Fac Gar Fac Gar Fac DSF Fac Gar Fac Gar Res Gar Res DSF Res Gar Res DSF Slots Evolved 16 | . . . . . 4 2 . . . 2 . 2 . 2 . . . 2 . . . 2 . . . Power 1 | . . . . . . . . . . . . 1 . . . . . . . . . . . . . Propulsion 4 | . . . . . 2 . . . . 1 . . . 1 . . . . . . . . . . . Utility 11 | . . . . . 2 2 . . . 1 . 1 . 1 . . . 2 . . . 2 . . . Weapon . | . . . . . . . . . . . . . . . . . . . . . . . . . . Parts Attached 198 | 10 9 5 . 2 49 16 5 3 30 10 6 2 10 2 11 2 2 3 . 2 7 4 2 1 5 Power 17 | 1 2 . . . 4 2 . . 1 1 2 1 2 . . . . . . . . 1 . . . Engine 5 | 1 1 . . . 1 1 . . . 1 . . . . . . . . . . . . . . . Core 11 | . 1 . . . 3 1 . . 1 . 2 1 2 . . . . . . . . . . . . Reactor 1 | . . . . . . . . . . . . . . . . . . . . . . 1 . . . Propulsion 77 | 4 2 1 . 2 23 4 1 1 8 3 1 1 8 . 3 2 . 1 . 1 5 2 . 1 3 Treads 5 | . . . . . 1 1 . . . . . . . . 1 . . . . . 2 . . . . Leg 1 | . . . . . . . . . . . . . . . . . . . . . . 1 . . . Wheel 38 | 4 2 1 . 2 22 3 1 1 1 . . . . . . . . . . 1 . . . . . Hover 14 | . . . . . . . . . . . . . 6 . . 2 . 1 . . 3 1 . 1 . Flight 19 | . . . . . . . . . 7 3 1 1 2 . 2 . . . . . . . . . 3 Utility 65 | 2 3 1 . . 15 8 3 1 13 4 2 . . 1 7 . 2 1 . 1 1 . . . . Device 25 | 1 2 1 . . 7 4 1 . 5 2 . . . 1 . . . . . 1 . . . . . Storage 3 | 1 1 . . . . . . . . . . . . . . . . . . . 1 . . . . Processor 4 | . . . . . 1 2 . . . 1 . . . . . . . . . . . . . . . Hackware 17 | . . . . . . . . 1 5 1 2 . . . 5 . 2 1 . . . . . . . Protection 16 | . . . . . 7 2 2 . 3 . . . . . 2 . . . . . . . . . . Artifact . | . . . . . . . . . . . . . . . . . . . . . . . . . . Weapon 39 | 3 2 3 . . 7 2 1 1 8 2 1 . . 1 1 . . 1 . . 1 1 2 . 2 Energy Gun 8 | 2 2 1 . . 1 . . . . . . . . . . . . . . . . 1 . . 1 Energy Cannon 1 | . . . . . . . . . . . . . . . . . . . . . 1 . . . . Ballistic Gun 5 | 1 . 1 . . 1 1 1 . . . . . . . . . . . . . . . . . . Ballistic Cannon 10 | . . . . . 4 1 . . 3 . . . . 1 . . . 1 . . . . . . . Launcher 3 | . . . . . 1 . . . . . . . . . . . . . . . . . 2 . . Special Weapon 1 | . . . . . . . . . . 1 . . . . . . . . . . . . . . . Impact Weapon . | . . . . . . . . . . . . . . . . . . . . . . . . . . Slashing Weapon 4 | . . 1 . . . . . . 1 1 . . . . . . . . . . . . . . 1 Piercing Weapon . | . . . . . . . . . . . . . . . . . . . . . . . . . . Special Melee Weapon 7 | . . . . . . . . 1 4 . 1 . . . 1 . . . . . . . . . . Unidentified Prototypes 3 | . . . . . 1 1 . . . . . . . . . . . . . 1 . . . . . Parts Lost 50 | . 1 . . . 7 2 1 . 3 3 . . 5 . 2 . 6 . 6 . 6 . 8 . . Power 2 | . . . . . . . . . . . . . 1 . . . . . . . . . 1 . . Propulsion 23 | . 1 . . . 4 2 1 . 1 2 . . 1 . 1 . 2 . 2 . 3 . 3 . . Utility 16 | . . . . . 2 . . . 2 1 . . 2 . . . 4 . 2 . 2 . 1 . . Weapon 9 | . . . . . 1 . . . . . . . 1 . 1 . . . 2 . 1 . 3 . . Highest Loss Streak 8 | . 1 . . . 5 1 1 . 2 2 . . 5 . 1 . 5 . 6 . 5 . 8 . . To Critical Strikes . | . . . . . . . . . . . . . . . . . . . . . . . . . . Average Slot Usage (%) 92 | . 99 100 100 100 99 98 99 92 89 95 100 87 79 38 65 76 72 52 45 35 45 41 42 20 19 Engine 1 | . 11 . . . 2 5 . . . 1 . . . . . . . . . . . . . . . Core 6 | . 2 14 14 14 6 1 7 7 6 4 6 5 5 . . . . . . . . . . . . Treads 2 | . . . . . . 6 7 7 6 . . . . . . . . . . . 3 8 4 . . Wheel 23 | . 27 28 28 28 35 22 22 15 13 . . . . . . . . . . 3 2 . . . . Flight 2 | . . . . . . . . . 2 30 33 29 15 10 18 11 8 4 1 . . . . . . Device 11 | . 14 14 14 14 17 11 7 7 5 11 6 5 5 3 5 5 . . . 2 2 . . . . Storage 7 | . 14 14 14 14 9 7 7 7 6 . . . . . . . . . . . 3 4 2 . . Processor 3 | . . . . . . 7 15 15 10 4 6 5 5 5 5 5 5 4 4 4 4 4 4 4 4 Hackware 4 | . . . . . . . . 5 10 27 33 28 22 10 17 31 33 25 26 19 18 13 12 8 7 Protection 7 | . . . . . 9 17 14 8 8 . . . . . 8 5 4 . . . . . . . . Ballistic Gun 2 | . 14 16 14 14 . . . 1 . . . . . . . . . . . . . . . . . Ballistic Cannon 4 | . . . . . 8 6 6 . 3 . . . . 3 5 5 4 4 2 . . . . . . Slashing Weapon 7 | . . 3 14 14 9 7 7 7 7 6 6 5 5 . . . . . . . . . . . . Naked Turns . | . . . . . . . . . . . . . . . . . . . . . . . . . . Heaviest Build 108 | 12 91 91 91 91 106 108 101 99 102 14 12 12 15 14 20 17 17 13 13 5 58 66 78 . 6 Greatest Support 160 | 26 20 20 20 32 46 30 30 38 38 16 16 16 45 26 34 26 26 13 13 20 160 160 160 12 12 Greatest Overweight (x) 28 | . 8 4 4 4 9 5 3 3 28 . . . 1 . . . 1 . 1 . 2 . 1 . . Average Overweight (x) 1 | . 3 4 4 3 2 3 3 2 1 . . . . . . . . . . . 1 . . . . Largest Inventory Capacity 25 | 8 25 25 25 25 25 25 25 25 25 5 5 5 5 5 5 5 5 5 5 5 20 20 20 5 5 Average Capacity 21 | 7 24 25 25 25 25 25 25 25 23 5 5 5 5 5 5 5 5 5 5 5 18 20 15 5 5 Most Carried 25 | 6 14 21 23 25 25 25 25 25 25 5 5 5 5 5 5 5 5 5 3 3 8 9 8 5 5 Average Carried 19 | 2 9 17 21 24 24 24 24 24 22 4 4 4 4 5 4 4 4 3 3 3 3 8 7 4 3 Final Capacity 25 | 8 25 25 25 25 25 25 25 25 5 5 5 5 5 5 5 5 5 5 5 5 20 20 5 5 5 Final Carried 25 | 6 14 21 22 25 25 25 25 25 5 5 5 5 5 5 5 4 5 3 3 3 8 9 5 4 3 Class Distribution -------------------- 61% | Scavenger-Mutant 19% | Mutant 13% | Bothacker-Mutant 5% | Bothacker-Sprinter Dominant Class ---------------- Mutant | -10/Materials Scavenger-Mutant | -10/Mines Scavenger-Mutant | -10/Exiles Scavenger-Mutant | -9/Mines Scavenger-Mutant | -8/Materials Mutant | -7/Factory Scavenger-Mutant | -7/Garrison Bothacker-Mutant | -7/Factory Bothacker-Mutant | -7/Garrison Scavenger-Sprinter | -6/Factory Bothacker-Sprinter | -6/Garrison Bothacker-Sprinter | -5/Factory Bothacker-Sprinter | -5/DSF Mutant | -4/Factory Mutant | -4/Garrison Mutant | -4/Factory Bothacker-Mutant | -4/Garrison Bothacker-Mutant | -3/Research Bothacker-Mutant | -3/Garrison Mutant | -3/Research Mutant | -3/DSF Mutant | -2/Research Mutant | -2/Garrison Mutant | -2/Research Mutant | -2/DSF Resources | -11 -10 -10 -10 -9 -8 -7 -7 -7 -7 -6 -6 -5 -5 -4 -4 -4 -4 -3 -3 -3 -3 -2 -2 -2 -2 ----------- Run | Yrd Mat Min Exi Min Mat Fac Gar Fac Gar Fac Gar Fac DSF Fac Gar Fac Gar Res Gar Res DSF Res Gar Res DSF Matter Collected 2532 | 309 128 71 . 55 555 275 17 . 354 206 106 . 61 . 242 . . . . . 114 . . . 39 Remotely . | . . . . . . . . . . . . . . . . . . . . . . . . . . Salvage Created 4892 | 156 648 218 . 278 2346 312 91 . 309 206 121 . 55 . 114 . . . . . . . . . 38 Parts 279 | 12 24 12 . 15 143 7 3 . 22 19 7 . 6 . 6 . . . . . . . . . 3 Haulers Intercepted 2 | . . . . . 2 . . . . . . . . . . . . . . . . . . . . Recyclers Shooed 8 | . 2 1 . 1 4 . . . . . . . . . . . . . . . . . . . . Parts Field Recycled . | . . . . . . . . . . . . . . . . . . . . . . . . . . Retrieved Matter . | . . . . . . . . . . . . . . . . . . . . . . . . . . Parts Self-Destructed . | . . . . . . . . . . . . . . . . . . . . . . . . . . Prevented . | . . . . . . . . . . . . . . . . . . . . . . . . . . Kills | -11 -10 -10 -10 -9 -8 -7 -7 -7 -7 -6 -6 -5 -5 -4 -4 -4 -4 -3 -3 -3 -3 -2 -2 -2 -2 ------- Run | Yrd Mat Min Exi Min Mat Fac Gar Fac Gar Fac Gar Fac DSF Fac Gar Fac Gar Res Gar Res DSF Res Gar Res DSF Combat Hostiles Destroyed 63 | . 6 . . 3 25 7 2 . 10 4 . . 1 . 4 . . . . . . . . . 1 Melee 36 | . . . . . 22 4 2 . 3 4 . . 1 . . . . . . . . . . . . Guns 10 | . 6 . . 3 . . . . . . . . . . . . . . . . . . . . 1 Cannons 17 | . . . . . 3 3 . . 7 . . . . . 4 . . . . . . . . . . Classes Destroyed 14 | 2 3 1 . 1 3 2 . . 1 . . . 1 . . . . . . . . . . . . Worker 22 | . 1 2 . 1 18 . . . . . . . . . . . . . . . . . . . . Builder 9 | . . 1 . 1 7 . . . . . . . . . . . . . . . . . . . . Tunneler 7 | 3 . . . 1 2 . . . . 1 . . . . . . . . . . . . . . . Hauler 2 | . . . . . 2 . . . . . . . . . . . . . . . . . . . . Recycler 17 | 1 4 3 . 3 6 . . . . . . . . . . . . . . . . . . . . Operator 4 | . . . . . 3 . . . . 1 . . . . . . . . . . . . . . . Watcher 6 | . 1 . . . 4 1 . . . . . . . . . . . . . . . . . . . Swarmer 22 | . . . . 3 6 . . . 7 . 2 . . . 4 . . . . . . . . . . Cutter 5 | . . . . . . . . . 2 2 . . . . . . . . . . . . . . 1 Grunt 26 | . 6 . . . 14 4 2 . . . . . . . . . . . . . . . . . . Sentry 7 | . . . . . 5 . . . 1 1 . . . . . . . . . . . . . . . Specialist 1 | . . . . . . . . . . . . . 1 . . . . . . . . . . . . Hunter 3 | . . . . . . 2 . . . . 1 . . . . . . . . . . . . . . Programmer 2 | . . . . . . 1 . . . 1 . . . . . . . . . . . . . . . Best Kill Streak 5 | 2 3 3 . 3 5 4 2 . 4 2 . . 1 . 4 . . . . . . . . . 1 Combat Bots Only 5 | . 2 . . 3 5 4 2 . 4 2 . . 1 . 4 . . . . . . . . . 1 Max Kills in Single Turn 1 | 1 1 1 . 1 1 1 1 . 1 1 1 . 1 . 1 . . . . . . . . . 1 Gunslinging . | . . . . . . . . . . . . . . . . . . . . . . . . . . Exploded . | . . . . . . . . . . . . . . . . . . . . . . . . . . Melee 1 | . . . . . 1 1 1 . 1 1 . . 1 . . . . . . . . . . . . Uniques/NPCs Destroyed . | . . . . . . . . . . . . . . . . . . . . . . . . . . Combat | -11 -10 -10 -10 -9 -8 -7 -7 -7 -7 -6 -6 -5 -5 -4 -4 -4 -4 -3 -3 -3 -3 -2 -2 -2 -2 -------- Run | Yrd Mat Min Exi Min Mat Fac Gar Fac Gar Fac Gar Fac DSF Fac Gar Fac Gar Res Gar Res DSF Res Gar Res DSF Hostile Shots Fired 823 | . 24 . . 5 137 71 4 . 64 27 . . 61 . 32 . 68 . 58 . 135 . 106 . 31 Missed 292 | . 4 . . 1 38 13 2 . 21 12 . . 19 . 9 . 36 . 26 . 57 . 44 . 10 Damage Taken 10776 | . 301 . . 33 1430 774 29 . 699 355 . . 715 . 447 . 547 . 639 . 2024 . 1910 . 873 Core 3210 | . 67 . . 6 176 48 . . 64 86 . . 287 . 127 . 133 . 445 . 321 . 651 . 799 Absorbed by Shields 125 | . . . . . . . . . . . . . 19 . . . 88 . . . . . 18 . . Redirected to Shielding 114 | . . . . . 22 92 . . . . . . . . . . . . . . . . . . . Ignored by Resistances 6 | . . . . . . . . . 6 . . . . . . . . . . . . . . . . Core Remaining (%) 75 | 100 . . . 70 68 . . . 84 . 89 . 71 . . . 77 . . . 41 . . . . Volleys Fired 187 | 9 38 21 . 7 17 24 . . 21 6 . . . . 19 . 5 . 1 . 3 3 11 . 2 Largest 2 | 2 2 2 . 1 1 1 . . 1 1 . . . . 1 . 1 . 1 . 1 1 1 . 1 Hottest 120 | 60 85 85 . 24 44 44 . . 44 5 . . . . 61 . 61 . 61 . 120 88 52 . 65 Shots Fired 253 | 18 74 42 . 7 17 24 . . 21 6 . . . . 19 . 5 . 1 . 3 3 11 . 2 Gun 147 | 18 74 42 . 7 1 . . . . . . . . . . . . . . . . 3 . . 2 Cannon 89 | . . . . . 16 24 . . 21 . . . . . 19 . 5 . 1 . 3 . . . . Launcher 11 | . . . . . . . . . . . . . . . . . . . . . . . 11 . . Special 6 | . . . . . . . . . . 6 . . . . . . . . . . . . . . . Kinetic 162 | 9 38 21 . 7 17 24 . . 21 . . . . . 19 . 5 . 1 . . . . . . Thermal 65 | . 36 21 . . . . . . . . . . . . . . . . . . 3 3 . . 2 Explosive 11 | . . . . . . . . . . . . . . . . . . . . . . . 11 . . Electromagnetic 9 | 9 . . . . . . . . . . . . . . . . . . . . . . . . . Robot Hit Streak 12 | 4 12 9 . 3 4 9 . . 6 1 . . . . 4 . 6 . . . 7 3 7 . 5 Robot Miss Streak 7 | 2 4 4 . 4 7 3 . . 6 3 . . . . 1 . . . . . 1 1 1 . . Penetration Max . | . . . . . . . . . . . . . . . . . . . . . . . . . . Secondary Targets . | . . . . . . . . . . . . . . . . . . . . . . . . . . Shots Hit Robots 428 | 10 53 24 . 15 145 37 3 2 44 23 12 6 5 7 15 . 9 2 . . 2 2 10 . 2 Core Hits 167 | 6 24 9 . 8 57 13 2 . 29 4 1 . 1 . 6 . . . . . . 1 4 . 2 Critical Kills . | . . . . . . . . . . . . . . . . . . . . . . . . . . Critical Parts Destroyed . | . . . . . . . . . . . . . . . . . . . . . . . . . . Critical Strikes 23 | . . . . . 9 5 . . 2 2 . . . . 3 . 2 . . . . . . . . Blast 7 | . . . . . 1 1 . . . . . . . . 3 . 2 . . . . . . . . Sever 16 | . . . . . 8 4 . . 2 2 . . . . . . . . . . . . . . . Melee Attacks 410 | . . . . 9 154 21 69 2 62 27 30 6 7 7 2 . 11 2 . . . . . . 1 Impact . | . . . . . . . . . . . . . . . . . . . . . . . . . . Slashing 355 | . . . . 9 154 21 69 . 56 19 22 . 4 . . . . . . . . . . . 1 Piercing . | . . . . . . . . . . . . . . . . . . . . . . . . . . Sneak Attacks 109 | . . . . 9 52 1 . 2 7 9 10 6 1 7 1 . 2 2 . . . . . . . Combat Hostiles 20 | . . . . . 1 . . . 6 3 6 . 1 . 1 . 2 . . . . . . . . Follow-up Attacks . | . . . . . . . . . . . . . . . . . . . . . . . . . . Damage Inflicted 13928 | 112 606 289 . 725 6779 1143 100 . 1305 668 320 . 135 . 508 . 108 . . . 87 79 902 . 62 Guns 1247 | 112 606 289 . 86 13 . . . . . . . . . . . . . . . . 79 . . 62 Cannons 1629 | . . . . . 209 416 . . 301 . . . . . 508 . 108 . . . 87 . . . . Explosions 902 | . . . . . . . . . . . . . . . . . . . . . . . 902 . . Melee 10150 | . . . . 639 6557 727 100 . 1004 668 320 . 135 . . . . . . . . . . . . Ramming . | . . . . . . . . . . . . . . . . . . . . . . . . . . Kinetic 1947 | 37 192 77 . 86 222 416 . . 301 . . . . . 508 . 108 . . . . . . . . Thermal 854 | . 414 212 . . . . . . . . . . . . . . . . . . 87 79 . . 62 Explosive 902 | . . . . . . . . . . . . . . . . . . . . . . . 902 . . Electromagnetic 75 | 75 . . . . . . . . . . . . . . . . . . . . . . . . . Impact . | . . . . . . . . . . . . . . . . . . . . . . . . . . Slashing 10150 | . . . . 639 6557 727 100 . 1004 668 320 . 135 . . . . . . . . . . . . Piercing . | . . . . . . . . . . . . . . . . . . . . . . . . . . Highest Corruption 3 | . . . . . . 1 1 . 1 1 1 . 1 . . . 1 . 1 1 1 . 3 3 3 Average Corruption 1 | . . . . . . 1 1 . 1 1 1 . 1 . . . 1 . 1 1 1 . 2 3 3 Corruption Purged 2 | . . . . . . . 1 . 1 . . . . . . . . . . . . . . . . Corruption Blocked . | . . . . . . . . . . . . . . . . . . . . . . . . . . Effects 11 | . . . . . . 3 3 . 1 1 . . . . . . . . . . . . . 1 2 Message Errors 3 | . . . . . . 2 . . . . . . . . . . . . . . . . . . 1 Matter Fused 2 | . . . . . . . 1 . . 1 . . . . . . . . . . . . . . . Heat Flow Errors 1 | . . . . . . . . . . . . . . . . . . . . . . . . . 1 Energy Discharges 2 | . . . . . . . . . 1 . . . . . . . . . . . . . . 1 . Parts Rejected 1 | . . . . . . 1 . . . . . . . . . . . . . . . . . . . Data Loss (minor) 1 | . . . . . . . 1 . . . . . . . . . . . . . . . . . . Data Loss (major) 1 | . . . . . . . 1 . . . . . . . . . . . . . . . . . . Overload Shots . | . . . . . . . . . . . . . . . . . . . . . . . . . . Overflow Damage 1728 | . . . . 201 1202 24 . . 17 109 85 . . . 43 . . . . . . . 47 . . Projectiles 43 | . . . . . . . . . . . . . . . 43 . . . . . . . . . . Explosions 47 | . . . . . . . . . . . . . . . . . . . . . . . 47 . . Melee 1638 | . . . . 201 1202 24 . . 17 109 85 . . . . . . . . . . . . . . Knockbacks 32 | . . . . . 6 9 . . 15 . . . . . 2 . . . . . . . . . . Impact . | . . . . . . . . . . . . . . . . . . . . . . . . . . Kinetic 30 | . . . . . 5 9 . . 14 . . . . . 2 . . . . . . . . . . Secondary 2 | . . . . . 1 . . . 1 . . . . . . . . . . . . . . . . Self-Inflicted Damage . | . . . . . . . . . . . . . . . . . . . . . . . . . . Shots . | . . . . . . . . . . . . . . . . . . . . . . . . . . Rammed . | . . . . . . . . . . . . . . . . . . . . . . . . . . Targets Rammed . | . . . . . . . . . . . . . . . . . . . . . . . . . . Kicked . | . . . . . . . . . . . . . . . . . . . . . . . . . . Crushed . | . . . . . . . . . . . . . . . . . . . . . . . . . . Highest Temperature 222 | 40 137 222 . . 10 144 . . 84 4 2 . 30 . . . 7 . . . . 30 . . 212 Average Temperature 47 | 21 50 67 . . 5 49 . . 35 4 1 . 17 . . . 7 . . . . 16 . . 121 Received Heat Transfer 2130 | . 165 . . . 738 225 18 . . 9 . . 108 . 18 . 203 . 33 . 262 . 351 . . Siege Activations . | . . . . . . . . . . . . . . . . . . . . . . . . . . Robots Corrupted . | . . . . . . . . . . . . . . . . . . . . . . . . . . Combat Hostiles . | . . . . . . . . . . . . . . . . . . . . . . . . . . Parts Fried . | . . . . . . . . . . . . . . . . . . . . . . . . . . Impact Corruptions . | . . . . . . . . . . . . . . . . . . . . . . . . . . Robots Melted . | . . . . . . . . . . . . . . . . . . . . . . . . . . Combat Hostiles . | . . . . . . . . . . . . . . . . . . . . . . . . . . Parts Melted 1 | . . . . . 1 . . . . . . . . . . . . . . . . . . . . Heat Transferred 1717 | . 940 518 . . . . . . . . . . . . . . . . . . 74 111 . . 74 Parts Sabotaged . | . . . . . . . . . . . . . . . . . . . . . . . . . . Parts Stolen . | . . . . . . . . . . . . . . . . . . . . . . . . . . Parts Stripped . | . . . . . . . . . . . . . . . . . . . . . . . . . . Power Chain Reactions . | . . . . . . . . . . . . . . . . . . . . . . . . . . Alert | -11 -10 -10 -10 -9 -8 -7 -7 -7 -7 -6 -6 -5 -5 -4 -4 -4 -4 -3 -3 -3 -3 -2 -2 -2 -2 ------- Run | Yrd Mat Min Exi Min Mat Fac Gar Fac Gar Fac Gar Fac DSF Fac Gar Fac Gar Res Gar Res DSF Res Gar Res DSF Peak Influence 545 | 20 248 62 . 115 403 198 173 90 479 433 545 290 223 106 292 147 248 133 136 65 48 . 63 16 77 Initial 303 | . 13 32 . . . 182 19 90 63 251 303 285 203 106 74 147 102 133 99 65 48 . . 16 12 Average 131 | 10 92 42 . 84 111 139 136 90 186 340 491 289 216 106 174 147 199 133 115 65 28 . 12 16 33 Maximum Alert Level 2 | . 1 . . . 2 . . . 2 2 2 1 1 . 1 . 1 . . . . . . . . Low Security (%) 82 | 100 95 100 . 100 83 100 100 100 73 . . . 8 100 71 100 37 100 100 100 100 100 100 100 100 Level 1 14 | . 4 . . . 16 . . . 20 91 6 100 91 . 28 . 62 . . . . . . . . Level 2 2 | . . . . . . . . . 6 8 93 . . . . . . . . . . . . . . Level 3 . | . . . . . . . . . . . . . . . . . . . . . . . . . . Level 4 . | . . . . . . . . . . . . . . . . . . . . . . . . . . Level 5 . | . . . . . . . . . . . . . . . . . . . . . . . . . . High Security . | . . . . . . . . . . . . . . . . . . . . . . . . . . Max Security . | . . . . . . . . . . . . . . . . . . . . . . . . . . Squads Dispatched 21 | . 2 1 . . 9 3 . . . 1 . 1 2 . . . . . . . 1 . . . 1 Investigation 5 | . . 1 . . 2 1 . . . . . 1 . . . . . . . . . . . . . Extermination 2 | . . . . . . 2 . . . . . . . . . . . . . . . . . . . Reinforcement 14 | . 2 . . . 7 . . . . 1 . . 2 . . . . . . . 1 . . . 1 Assault . | . . . . . . . . . . . . . . . . . . . . . . . . . . Garrison . | . . . . . . . . . . . . . . . . . . . . . . . . . . Intercept . | . . . . . . . . . . . . . . . . . . . . . . . . . . Searches Triggered . | . . . . . . . . . . . . . . . . . . . . . . . . . . Construction Impeded . | . . . . . . . . . . . . . . . . . . . . . . . . . . Haulers Reinforced . | . . . . . . . . . . . . . . . . . . . . . . . . . . Active Scanning Responses . | . . . . . . . . . . . . . . . . . . . . . . . . . . Cargo Convoy Interrupts . | . . . . . . . . . . . . . . . . . . . . . . . . . . Stealth | -11 -10 -10 -10 -9 -8 -7 -7 -7 -7 -6 -6 -5 -5 -4 -4 -4 -4 -3 -3 -3 -3 -2 -2 -2 -2 --------- Run | Yrd Mat Min Exi Min Mat Fac Gar Fac Gar Fac Gar Fac DSF Fac Gar Fac Gar Res Gar Res DSF Res Gar Res DSF Distress Signals 4 | . . . . . 3 1 . . . . . . . . . . . . . . . . . . . Communications Jammed . | . . . . . . . . . . . . . . . . . . . . . . . . . . Distress Signals . | . . . . . . . . . . . . . . . . . . . . . . . . . . Times Spotted 175 | . 18 . . 3 49 11 2 . 17 13 . . 9 . 6 1 13 . 13 . 7 . 7 . 6 Peak Tracking Total 11 | . 4 . . 3 8 6 2 . 6 4 . . 8 . 4 1 5 . 11 . 7 . 8 . 5 Tactical Retreats 27 | . 4 . . . 10 1 . . 2 3 . . 1 . . . 2 . . . . . 2 . 2 Traps | -11 -10 -10 -10 -9 -8 -7 -7 -7 -7 -6 -6 -5 -5 -4 -4 -4 -4 -3 -3 -3 -3 -2 -2 -2 -2 ------- Run | Yrd Mat Min Exi Min Mat Fac Gar Fac Gar Fac Gar Fac DSF Fac Gar Fac Gar Res Gar Res DSF Res Gar Res DSF Traps Triggered 23 | . . . . . 2 . 3 . 3 3 1 1 2 . 1 . 4 . . . 1 . 1 . 1 Indirectly . | . . . . . . . . . . . . . . . . . . . . . . . . . . Trap Hack Attempts 27 | . . . . . . . . . 27 . . . . . . . . . . . . . . . . Triggered . | . . . . . . . . . . . . . . . . . . . . . . . . . . Disarmed . | . . . . . . . . . . . . . . . . . . . . . . . . . . Reprogrammed 4 | . . . . . . . . . 4 . . . . . . . . . . . . . . . . Reused . | . . . . . . . . . . . . . . . . . . . . . . . . . . Traps Extracted . | . . . . . . . . . . . . . . . . . . . . . . . . . . Installed . | . . . . . . . . . . . . . . . . . . . . . . . . . . Triggered . | . . . . . . . . . . . . . . . . . . . . . . . . . . Machines | -11 -10 -10 -10 -9 -8 -7 -7 -7 -7 -6 -6 -5 -5 -4 -4 -4 -4 -3 -3 -3 -3 -2 -2 -2 -2 ---------- Run | Yrd Mat Min Exi Min Mat Fac Gar Fac Gar Fac Gar Fac DSF Fac Gar Fac Gar Res Gar Res DSF Res Gar Res DSF Machines Disabled 8 | . . . . . . . 1 . 1 1 2 . . . 2 . 1 . . . . . . . . Max in Single Turn 1 | . . . . . . . 1 . 1 1 1 . . . 1 . 1 . . . . . . . . Garrison Relay 7 | . . . . . . . 1 . 1 . 2 . . . 2 . 1 . . . . . . . . Machines Repaired . | . . . . . . . . . . . . . . . . . . . . . . . . . . Machines Dismantled . | . . . . . . . . . . . . . . . . . . . . . . . . . . Machines Sabotaged . | . . . . . . . . . . . . . . . . . . . . . . . . . . Overloaded Fab Kills . | . . . . . . . . . . . . . . . . . . . . . . . . . . Hacking | -11 -10 -10 -10 -9 -8 -7 -7 -7 -7 -6 -6 -5 -5 -4 -4 -4 -4 -3 -3 -3 -3 -2 -2 -2 -2 --------- Run | Yrd Mat Min Exi Min Mat Fac Gar Fac Gar Fac Gar Fac DSF Fac Gar Fac Gar Res Gar Res DSF Res Gar Res DSF Machines Accessed 36 | . 2 1 2 . 4 4 . 1 . 3 2 3 . 4 3 1 1 1 . 1 . 1 1 1 . Terminals 21 | . 2 . . . 2 2 . . . 2 2 2 . 2 3 . 1 . . 1 . . 1 1 . Fabricators 1 | . . . . . . . . . . . . 1 . . . . . . . . . . . . . Repair Stations 1 | . . . . . . . . . . . . . . 1 . . . . . . . . . . . Recycling Units . | . . . . . . . . . . . . . . . . . . . . . . . . . . Scanalyzers 3 | . . . . . 2 1 . . . . . . . . . . . . . . . . . . . Garrison Access 7 | . . . . . . 1 . 1 . 1 . . . 1 . 1 . 1 . . . 1 . . . Total Hacks 61 | . 6 1 2 . 9 8 . 2 . 4 4 6 . 5 4 2 1 2 . 1 . 2 1 1 . Successful 30 | . 1 1 2 . 4 4 . 2 . 2 . 3 . 2 1 2 . 2 . 1 . 2 . 1 . Failed 31 | . 5 . . . 5 4 . . . 2 4 3 . 3 3 . 1 . . . . . 1 . . Catastrophic 10 | . . . . . 1 . . . . 2 1 2 . 2 1 . 1 . . . . . . . . Database Lockouts . | . . . . . . . . . . . . . . . . . . . . . . . . . . Manual 20 | . 6 . 1 . 2 . . . . 2 2 3 . 2 2 . . . . . . . . . . Terminals 34 | . 6 . . . 4 4 . . . 2 4 4 . 2 4 . 1 . . 1 . . 1 1 . Fabricators 2 | . . . . . . . . . . . . 2 . . . . . . . . . . . . . Repair Stations 1 | . . . . . . . . . . . . . . 1 . . . . . . . . . . . Recycling Units . | . . . . . . . . . . . . . . . . . . . . . . . . . . Scanalyzers 8 | . . . . . 5 3 . . . . . . . . . . . . . . . . . . . Garrison Access 13 | . . . . . . 1 . 2 . 2 . . . 2 . 2 . 2 . . . 2 . . . Terminal Hacks 10 | . 1 1 2 . . 2 . . . . . 1 . . 1 . . . . 1 . . . 1 . Record 1 | . . . 1 . . . . . . . . . . . . . . . . . . . . . . Open Door 1 | . . 1 . . . . . . . . . . . . . . . . . . . . . . . Open DSF 4 | . . . . . . 1 . . . . . 1 . . . . . . . 1 . . . 1 . Branch Access Points 2 | . 1 . . . . 1 . . . . . . . . . . . . . . . . . . . Patrol Navigation 1 | . . . . . . . . . . . . . . . 1 . . . . . . . . . . Derelict Proto ID Bank 1 | . . . 1 . . . . . . . . . . . . . . . . . . . . . . Fabricator Hacks 2 | . . . . . . . . . . . . 2 . . . . . . . . . . . . . Load Schematic 1 | . . . . . . . . . . . . 1 . . . . . . . . . . . . . Build 1 | . . . . . . . . . . . . 1 . . . . . . . . . . . . . Repair Station Hacks . | . . . . . . . . . . . . . . . . . . . . . . . . . . Recycling Unit Hacks . | . . . . . . . . . . . . . . . . . . . . . . . . . . Scanalyzer 5 | . . . . . 4 1 . . . . . . . . . . . . . . . . . . . Insert Component 3 | . . . . . 2 1 . . . . . . . . . . . . . . . . . . . Analyze 2 | . . . . . 2 . . . . . . . . . . . . . . . . . . . . Garrison Access Hacks 13 | . . . . . . 1 . 2 . 2 . . . 2 . 2 . 2 . . . 2 . . . Unlock Access 7 | . . . . . . 1 . 1 . 1 . . . 1 . 1 . 1 . . . 1 . . . Coupler Status 6 | . . . . . . . . 1 . 1 . . . 1 . 1 . 1 . . . 1 . . . Unauthorized Hacks . | . . . . . . . . . . . . . . . . . . . . . . . . . . Terminals . | . . . . . . . . . . . . . . . . . . . . . . . . . . Fabricators . | . . . . . . . . . . . . . . . . . . . . . . . . . . Repair Stations . | . . . . . . . . . . . . . . . . . . . . . . . . . . Recycling Units . | . . . . . . . . . . . . . . . . . . . . . . . . . . Scanalyzers . | . . . . . . . . . . . . . . . . . . . . . . . . . . Garrison Access . | . . . . . . . . . . . . . . . . . . . . . . . . . . Data Cores Recovered 1 | . . . . . . . . . . 1 . . . . . . . . . . . . . . . Used . | . . . . . . . . . . . . . . . . . . . . . . . . . . Hacking Detections 24 | . 2 . . . 4 2 . 1 . 2 2 2 . 3 3 . 1 1 . . . . 1 . . Full Trace Events 2 | . . . . . . 1 . . . . . 1 . . . . . . . . . . . . . Feedback Events . | . . . . . . . . . . . . . . . . . . . . . . . . . . Feedback Blocked . | . . . . . . . . . . . . . . . . . . . . . . . . . . Robot Schematics Acquired . | . . . . . . . . . . . . . . . . . . . . . . . . . . Robots Built . | . . . . . . . . . . . . . . . . . . . . . . . . . . Authchips . | . . . . . . . . . . . . . . . . . . . . . . . . . . Time . | . . . . . . . . . . . . . . . . . . . . . . . . . . Total Robot Build Rating . | . . . . . . . . . . . . . . . . . . . . . . . . . . Part Schematics Acquired 2 | . . . . . 2 . . . . . . . . . . . . . . . . . . . . Parts Built . | . . . . . . . . . . . . . . . . . . . . . . . . . . Authchips . | . . . . . . . . . . . . . . . . . . . . . . . . . . Time 73 | . . . . . . . . . . . . 73 . . . . . . . . . . . . . Total Part Build Rating . | . . . . . . . . . . . . . . . . . . . . . . . . . . Parts Repaired . | . . . . . . . . . . . . . . . . . . . . . . . . . . Time . | . . . . . . . . . . . . . . . . . . . . . . . . . . Parts Recycled . | . . . . . . . . . . . . . . . . . . . . . . . . . . Recycled Matter . | . . . . . . . . . . . . . . . . . . . . . . . . . . Retrieved Matter . | . . . . . . . . . . . . . . . . . . . . . . . . . . Retrieved Components . | . . . . . . . . . . . . . . . . . . . . . . . . . . Parts Scanalyzed 3 | . . . . . 2 1 . . . . . . . . . . . . . . . . . . . Part Schematics Acquired 2 | . . . . . 2 . . . . . . . . . . . . . . . . . . . . Parts Damaged . | . . . . . . . . . . . . . . . . . . . . . . . . . . Bothacking | -11 -10 -10 -10 -9 -8 -7 -7 -7 -7 -6 -6 -5 -5 -4 -4 -4 -4 -3 -3 -3 -3 -2 -2 -2 -2 ------------ Run | Yrd Mat Min Exi Min Mat Fac Gar Fac Gar Fac Gar Fac DSF Fac Gar Fac Gar Res Gar Res DSF Res Gar Res DSF Used RIF Installer 4 | . . . . . . . 1 . . . 2 . . . . . 1 . . . . . . . . Command Fork 1 | . . . . . . . . . . . 1 . . . . . . . . . . . . . . Signal Jammer 1 | . . . . . . . . . . . 1 . . . . . . . . . . . . . . Watcher Feeds 1 | . . . . . . . . . . . . . . . . . 1 . . . . . . . . Robots Hacked 19 | . . . . . . . . 2 4 3 . 3 . 2 1 . 3 1 . . . . . . . Non-combat 10 | . . . . . . . . 2 . 2 . 3 . 2 . . . 1 . . . . . . . Combat 9 | . . . . . . . . . 4 1 . . . . 1 . 3 . . . . . . . . Robot Hacks Applied 31 | . . . . . . . . 2 4 6 . 5 . 7 1 . 4 2 . . . . . . . parse_system 1 | . . . . . . . . . . 1 . . . . . . . . . . . . . . . no_distress 5 | . . . . . . . . . . . . 2 . 2 . . . 1 . . . . . . . find_chute 2 | . . . . . . . . . . . . 1 . 1 . . . . . . . . . . . find_fabricator 2 | . . . . . . . . . . 1 . . . 1 . . . . . . . . . . . find_dsf 2 | . . . . . . . . . . 1 . . . 1 . . . . . . . . . . . drop_inventory 3 | . . . . . . . . . . 1 . . . 1 . . . 1 . . . . . . . locate_stockpiles 1 | . . . . . . . . . . . . . . 1 . . . . . . . . . . . find_recycling 1 | . . . . . . . . . . . . 1 . . . . . . . . . . . . . ignore_parts 3 | . . . . . . . . 2 . . . 1 . . . . . . . . . . . . . link_fov 1 | . . . . . . . . . . 1 . . . . . . . . . . . . . . . reboot_system 2 | . . . . . . . . . 1 1 . . . . . . . . . . . . . . . go_dormant 2 | . . . . . . . . . . . . . . . 1 . 1 . . . . . . . . overwrite_iff 6 | . . . . . . . . . 3 . . . . . . . 3 . . . . . . . . Relay Couplers Released 28 | . . . . . . . 4 . 5 . 7 . . . 9 . 3 . . . . . . . . Machine Destruction 28 | . . . . . . . 4 . 5 . 7 . . . 9 . 3 . . . . . . . . Attached 16 | . . . . . . . . 1 5 . 2 . . . 5 . 2 1 . . . . . . . Fabnet Peak Effective % . | . . . . . . . . . . . . . . . . . . . . . . . . . . Robots Rewired 3 | . . . . . . . . . . . 3 . . . . . . . . . . . . . . Allies Hacked . | . . . . . . . . . . . . . . . . . . . . . . . . . . Hacks Repelled . | . . . . . . . . . . . . . . . . . . . . . . . . . . Allies | -11 -10 -10 -10 -9 -8 -7 -7 -7 -7 -6 -6 -5 -5 -4 -4 -4 -4 -3 -3 -3 -3 -2 -2 -2 -2 -------- Run | Yrd Mat Min Exi Min Mat Fac Gar Fac Gar Fac Gar Fac DSF Fac Gar Fac Gar Res Gar Res DSF Res Gar Res DSF Total Allies 11 | . . . . . . . . . 3 . 5 . . . . . 3 . . . . . . . . Largest Group 4 | . . . . . . . . . 3 . 4 . . . . . 2 . . . . . . . . Highest-Rated Group 120 | . . . . . . . . . 72 . 120 . . . . . 116 . . . . . . . . Highest-Rated Ally 116 | . . . . . . . . . 25 . 41 . . . . . 116 . . . . . . . . Total Orders . | . . . . . . . . . . . . . . . . . . . . . . . . . . Ally Attacks 13 | . . . . . . . . . 2 . 3 . . . . . 8 . . . . . . . . Total Damage 624 | . . . . . . . . . 70 . 230 . . . . . 324 . . . . . . . . Kills 4 | . . . . . . . . . 1 . 1 . . . . . 2 . . . . . . . . Allies Corrupted . | . . . . . . . . . . . . . . . . . . . . . . . . . . Allies Melted . | . . . . . . . . . . . . . . . . . . . . . . . . . . Intel | -11 -10 -10 -10 -9 -8 -7 -7 -7 -7 -6 -6 -5 -5 -4 -4 -4 -4 -3 -3 -3 -3 -2 -2 -2 -2 ------- Run | Yrd Mat Min Exi Min Mat Fac Gar Fac Gar Fac Gar Fac DSF Fac Gar Fac Gar Res Gar Res DSF Res Gar Res DSF Robot Analysis Total . | . . . . . . . . . . . . . . . . . . . . . . . . . . Derelict Logs Recovered 1 | . . . . 1 . . . . . . . . . . . . . . . . . . . . . Drone Launches . | . . . . . . . . . . . . . . . . . . . . . . . . . . Drone Recoveries . | . . . . . . . . . . . . . . . . . . . . . . . . . . Exploration | -11 -10 -10 -10 -9 -8 -7 -7 -7 -7 -6 -6 -5 -5 -4 -4 -4 -4 -3 -3 -3 -3 -2 -2 -2 -2 ------------- Run | Yrd Mat Min Exi Min Mat Fac Gar Fac Gar Fac Gar Fac DSF Fac Gar Fac Gar Res Gar Res DSF Res Gar Res DSF Turns Passed 13068 | 128 489 478 919 414 5049 836 1146 193 1281 287 231 69 87 100 358 25 232 51 55 66 135 144 170 37 88 Spaces Moved 8270 | 101 240 289 655 261 1797 529 512 152 434 694 649 226 81 237 379 59 267 114 100 73 85 83 108 49 96 Core 13 | 2 . . . . . . . . 1 . . . . . . . . . . . . . . . 10 Treads 166 | . . . . . . . . . . . . . . . . . . . . . 25 83 58 . . Legs 19 | . . . . . . . . . . . . . . . . . . . . . . . 19 . . Wheels 5003 | 99 240 289 655 261 1797 529 512 152 346 . . . . . . . . . . 63 60 . . . . Hover 257 | . . . . . . . . . . . . . 35 . . . 9 . 44 10 . . 31 49 79 Flight 2812 | . . . . . . . . . 87 694 649 226 46 237 379 59 258 114 56 . . . . . 7 Fastest Speed 23 | 50 80 140 140 130 110 125 125 120 26 23 23 23 23 37 28 37 37 40 40 70 90 160 70 70 40 Average Speed 89 | 83 138 140 140 136 111 125 125 120 106 23 23 23 27 37 36 37 38 40 54 87 132 160 129 70 65 Slowest Speed 1450 | 100 200 140 140 140 215 155 125 125 1450 29 23 26 120 37 37 37 120 40 110 90 160 160 190 70 70 Overloaded Moves . | . . . . . . . . . . . . . . . . . . . . . . . . . . Propulsion Burnouts . | . . . . . . . . . . . . . . . . . . . . . . . . . . Robots Hopped 10 | . . . . . . . . . . 3 1 5 . . . . . . . . . . . . 1 Cave-ins Triggered . | . . . . . . . . . . . . . . . . . . . . . . . . . . Exploration Rate (%) 31 | 5 39 65 81 43 67 9 34 3 40 12 75 5 67 6 37 2 30 4 26 2 71 1 27 2 54 Regions Visited 25 Branch Regions 3 Pre-discovered Areas . | . . . . . . . . . . . . . . . . . . . . . . . . . . Known Exits Taken 12 | . 1 . . . 1 1 . 1 . 1 . 1 . 1 . 1 . 1 . 1 . 1 . 1 . Unknown Exits Taken 4 | 1 . 1 1 1 . . . . . . . . . . . . . . . . . . . . . Scrap Searched 2 | . . 1 . 1 . . . . . . . . . . . . . . . . . . . . . Spaces Dug 59 | . . . . . . . 24 . 25 2 7 . . . . . . . 1 . . . . . . Terrain Destroyed 88 | . . . . . 2 1 24 . 25 2 7 . . . 2 . . . 1 . 1 . 23 . . Melee 58 | . . . . . . . 24 . 25 2 7 . . . . . . . . . . . . . . Projectile 7 | . . . . . 2 1 . . . . . . . . 2 . . . 1 . 1 . . . . AOE 23 | . . . . . . . . . . . . . . . . . . . . . . . 23 . . Terrain Rammed . | . . . . . . . . . . . . . . . . . . . . . . . . . . Walls Destroyed . | . . . . . . . . . . . . . . . . . . . . . . . . . . Machines Disabled . | . . . . . . . . . . . . . . . . . . . . . . . . . . Actions | -11 -10 -10 -10 -9 -8 -7 -7 -7 -7 -6 -6 -5 -5 -4 -4 -4 -4 -3 -3 -3 -3 -2 -2 -2 -2 --------- Run | Yrd Mat Min Exi Min Mat Fac Gar Fac Gar Fac Gar Fac DSF Fac Gar Fac Gar Res Gar Res DSF Res Gar Res DSF Total 13030 | 124 330 325 657 297 4573 642 898 162 1137 777 690 237 137 247 573 61 389 118 99 74 101 90 126 51 115 Wait 3597 | . 29 2 . 10 2472 38 283 . 486 20 . 6 10 2 144 . 91 . . . 2 . . . 2 Move 8217 | 100 239 288 654 260 1796 528 510 151 432 688 644 214 80 236 377 58 265 113 98 72 84 82 106 48 94 Hop 9 | . . . . . . . . . . 2 1 5 . . . . . . . . . . . . 1 Pick Up 85 | 3 7 5 2 6 32 3 4 1 8 2 2 1 . . 2 . . . . . 4 . . 1 2 Fast Attach 96 | 9 3 2 . . 13 11 . 1 9 7 2 1 9 2 9 1 2 1 . 2 7 4 . . 1 Attach 42 | . 1 1 . . 11 3 3 . 8 1 . 1 1 . 2 1 . 2 . . . . 2 1 4 Detach 30 | 2 3 3 . . 5 2 . 2 4 . 1 1 1 . 1 . 2 . . . 1 1 . . 1 Swap 60 | 1 5 2 . 2 25 2 2 2 13 2 4 . . . . . . . . . . . . . . Drop 127 | . 5 1 1 3 48 10 3 3 31 4 5 1 6 . 2 1 1 . . . . . 1 1 . Fire 187 | 9 38 21 . 7 17 24 . . 21 6 . . . . 19 . 5 . 1 . 3 3 11 . 2 Melee 410 | . . . . 9 154 21 69 2 62 27 30 6 7 7 2 . 11 2 . . . . . . 1 Ram . | . . . . . . . . . . . . . . . . . . . . . . . . . . Kick . | . . . . . . . . . . . . . . . . . . . . . . . . . . Crush . | . . . . . . . . . . . . . . . . . . . . . . . . . . Escape Stasis 143 | . . . . . . . 24 . 36 18 1 1 23 . 15 . 12 . . . . . 6 . 7 Rewire . | . . . . . . . . . . . . . . . . . . . . . . . . . . Trap 27 | . . . . . . . . . 27 . . . . . . . . . . . . . . . . Miscellaneous . | . . . . . . . . . . . . . . . . . . . . . . . . . . Route ------- -11/Scrapyard -10/Materials -10/Mines -10/Exiles (discovered 2 exits: [*Min x2]) -9/Mines -8/Materials -7/Factory (discovered 3 exits: Low x2 / Gar) -7/Garrison -7/Factory -7/Garrison -6/Factory -6/Garrison (discovered 3 exits: *Fac x3) -5/Factory -5/DSF -4/Factory -4/Garrison -4/Factory -4/Garrison -3/Research -3/Garrison -3/Research -3/DSF -2/Research -2/Garrison -2/Research -2/DSF History --------- Turn | Location | Event 10 | -11/Scrapyard | Discovered new exit (range 14) 129 | -11/Scrapyard | Entered Materials 325 | -10/Materials | Build established: Mutant 560 | -10/Materials | Identified exit to Mines 618 | -10/Materials | Entered Mines 779 | -10/Mines | Build established: Scavenger-Mutant 884 | -10/Mines | A weapon hastily lodged in a ceiling crevice suddenly fell to the ground 962 | -10/Mines | Met a Derelict shopkeep closing up shop 1091 | -10/Mines | Deemed a non-threat by the Exiles lab entrance 1091 | -10/Mines | Discovered new exit (range 5) 1096 | -10/Mines | Entered Exiles 1130 | -10/Exiles | Met 8R-AWN 1151 | -10/Exiles | Met EX-HEX 1206 | -10/Exiles | Met EX-BIN 1222 | -10/Exiles | Aligned with FarCom system 1224 | -10/Exiles | Given EX-Vault access code 1257 | -10/Exiles | Opened EX-Vault 1269 | -10/Exiles | Found Cloak of Protection 1321 | -10/Exiles | Warned to stay clear of 0b10 Research branches 1363 | -10/Exiles | Met EX-DEC 1412 | -10/Exiles | Visited The Gauntlet 1641 | -10/Exiles | Discovered new exit (range 12) 1827 | -10/Exiles | Discovered new exit (range 14) 2015 | -10/Exiles | Left Exiles lab with Cloak of Protection 2015 | -10/Exiles | Entered Mines 2163 | -9/Mines | Learned Materials stockpile data 2360 | -9/Mines | Discovered new exit (range 4) 2429 | -9/Mines | Entered Materials 2429 | -8/Materials | Evolved 4 slots: Propulsion x2, Utility x2 4404 | -8/Materials | Lost 5 parts (3n1u1w) 7094 | -8/Materials | Discovered new exit (range 5) 7136 | -8/Materials | Identified exit to Factory 7478 | -8/Materials | Entered Factory 7478 | -7/Factory | Evolved 2 slots: Utility x2 7481 | -7/Factory | Build established: Mutant 7683 | -7/Factory | Identified exit to Lower Caves 8313 | -7/Factory | Identified exit to Garrison 8314 | -7/Factory | Entered Garrison 8360 | -7/Garrison | Triggered checkpoint 8399 | -7/Garrison | Garrison Relay disabled 8401 | -7/Garrison | Build established: Scavenger-Mutant 8654 | -7/Garrison | Triggered checkpoint 9182 | -7/Garrison | Installed Relay Interface Framework 9454 | -7/Garrison | Discovered new exit (range 5) 9460 | -7/Garrison | Entered Factory 9652 | -7/Factory | Identified exit to Garrison 9653 | -7/Factory | Entered Garrison 9726 | -7/Garrison | Triggered checkpoint 9796 | -7/Garrison | Build established: Bothacker-Mutant 9882 | -7/Garrison | Garrison Relay disabled 10632 | -7/Garrison | Triggered checkpoint 10927 | -7/Garrison | Discovered new exit (range 8) 10934 | -7/Garrison | Entered Factory 10934 | -6/Factory | Evolved 2 slots: Propulsion x1, Utility x1 11220 | -6/Factory | Identified exit to Garrison 11221 | -6/Factory | Entered Garrison 11221 | -6/Garrison | Discovered recently destroyed garrison 11231 | -6/Garrison | Rescued a captive Derelict 11233 | -6/Garrison | Rescued a captive Derelict 11236 | -6/Garrison | Garrison Relay disabled 11242 | -6/Garrison | Expanded RIF knowledge: Signal Jamming 11258 | -6/Garrison | Expanded RIF knowledge: Command Fork 11284 | -6/Garrison | Discovered new exit (range 9) 11306 | -6/Garrison | Discovered new exit (range 11) 11316 | -6/Garrison | Garrison Relay disabled 11401 | -6/Garrison | Discovered new exit (range 14) 11452 | -6/Garrison | Entered Factory 11452 | -5/Factory | Evolved 2 slots: Power x1, Utility x1 11464 | -5/Factory | Identified exit to DSF 11478 | -5/Factory | Build established: Bothacker-Sprinter 11521 | -5/Factory | Entered DSF 11573 | -5/DSF | Additional patrols routed to DSF 11592 | -5/DSF | Discovered new exit (range 11) 11608 | -5/DSF | Entered Factory 11608 | -4/Factory | Evolved 2 slots: Propulsion x1, Utility x1 11639 | -4/Factory | Lost 5 parts (1p1n2u1w) 11694 | -4/Factory | Identified exit to Garrison 11708 | -4/Factory | Entered Garrison 11844 | -4/Garrison | Build established: Mutant 11859 | -4/Garrison | Heavy support dispatched to Factory 11946 | -4/Garrison | Triggered checkpoint 11964 | -4/Garrison | Garrison Relay disabled 11985 | -4/Garrison | Spotted B-86 Titan 12015 | -4/Garrison | Garrison Relay disabled 12026 | -4/Garrison | Triggered checkpoint 12034 | -4/Garrison | Discovered new exit (range 12) 12066 | -4/Garrison | Entered Factory 12091 | -4/Factory | Identified exit to Garrison 12091 | -4/Factory | Entered Garrison 12110 | -4/Garrison | Triggered checkpoint 12116 | -4/Garrison | Garrison Relay disabled 12149 | -4/Garrison | Spotted B-86 Titan 12274 | -4/Garrison | Triggered checkpoint 12276 | -4/Garrison | Build established: Bothacker-Mutant 12306 | -4/Garrison | Discovered new exit (range 10) 12317 | -4/Garrison | Expanded RIF knowledge: Watcher Feeds 12322 | -4/Garrison | Lost 5 parts (2n3u) 12323 | -4/Garrison | Entered Research 12323 | -3/Research | Evolved 2 slots: Utility x2 12329 | -3/Research | Identified exit to Garrison 12374 | -3/Research | Entered Garrison 12397 | -3/Garrison | Triggered checkpoint 12400 | -3/Garrison | Triggered checkpoint 12400 | -3/Garrison | Triggered checkpoint 12400 | -3/Garrison | Triggered checkpoint 12420 | -3/Garrison | Discovered new exit (range 12) 12429 | -3/Garrison | Entered Research 12443 | -3/Research | Found Quantum Capacitor 12458 | -3/Research | Lost 6 parts (2n2u2w) 12458 | -3/Research | Identified exit to DSF 12495 | -3/Research | Entered DSF 12548 | -3/DSF | Additional patrols routed to DSF 12599 | -3/DSF | Discovered new exit (range 15) 12616 | -3/DSF | Core integrity fell below 50% 12620 | -3/DSF | Found Fusion Bomb Launcher 12622 | -3/DSF | Found Fusion Bomb Launcher 12626 | -3/DSF | Lost 5 parts (3n1u1w) 12630 | -3/DSF | Entered Research 12630 | -2/Research | Evolved 2 slots: Utility x2 12710 | -2/Research | Build established: Mutant 12773 | -2/Research | Identified exit to Garrison 12774 | -2/Research | Entered Garrison 12865 | -2/Garrison | Spotted B-90 Cyclops 12904 | -2/Garrison | Triggered checkpoint 12937 | -2/Garrison | Discovered new exit (range 10) 12944 | -2/Garrison | Entered Research 12948 | -2/Research | Lost 8 parts (1p3n1u3w) 12981 | -2/Research | Identified exit to DSF 12981 | -2/Research | Entered DSF 12995 | -2/DSF | Core integrity fell below 50% 13006 | -2/DSF | Additional patrols routed to DSF 13059 | -2/DSF | Core integrity fell below 20% 13069 | -2/DSF | Destroyed by C-57 Dissector with Dual-blade Saw Last Messages --------------- 13016_ Stasis field depleted. 13019_ ALERT: Suspicious intruders detected, dispatching Cutter reinforcements to area. 13025_ System corrupted: Heat flow error (+274). 13041_ Knocked back. 13045_ C-57 Dissector destroyed. 13047_ Acquired 38 matter. 13049_ Enh. Quantum Rifle severed. 13049_ Acquired Dual-blade Saw. 13051_ Dual-blade Saw severed. 13052_ Imp. System Shield severed. 13052_ Gyrokinetic Inverter severed. 13055_ Impulse Thruster severed. 13057_ Acquired Dual-blade Saw. 13058_ Acquired Impulse Thruster. 13058_ Relay Coupler [Specialist] severed. 13064_ Knocked back. 13064_ C-57 Dissector knocked back. 13064_ Impulse Thruster severed. 13065_ Acquired 1 matter. Map ----- +----------------------------------------------------+ | ???????## ##########??? ??????????????? | | ???????#] ]]#??????????? #?????????????? | | ???????#] ]]#???????????? #?????????????? | | ???????## ###????????????###?????????????? | | ???????# [[#????????????????????????????? | | ???????# [[#????????????????????????????? | | ??????## [[#????????????????????????????? | | ?????? #####?###?????????????????????? | | ?????## #!!!#!!!#?????????????????????? | | ?????# #!!!"!!!## ??????????????????? | | ?????# ]] ?????????????????? | | ?????##]] H ?????????????????? | | ?????# ]] ?????????????????? | | ??????#% = # #***## ??????????????????? | | ??????# == ## #??*#?????????????????????? | | ??????### [######?????????????????????????? | | ???????#& &&#????????????????????????????? | | ???????#& &&#????????????????????????????? | | ???????#& &&#????????????????????????????? | | ???????## ###????????????????????????????? | | ???????#& #????????????????????????????? | | ???????# #????????????????????????????? | | ??????## ##########?????????????????????? | | ??????# ##&&# #?????????????????????? | | ????###" & # ### #???????????????? | | ???#""""" c c@ ????????? | | ???#"##"" c ????????? | | ??????#""" = # #!! #===#?????????? | | ??????#"" ""#########?! #?????????????? | | ??????# ##"##??????????######?????????????? | | ??????#??#"#??????????????????????????????? | | ?????????""#??????????????????????????????? | | ?????????##???????????????????????????????? | | ??????????????????????????????????????????? | | ??????????????????????????????????????????? | | ??????????????????????????????????????????? | | ??????????????????????????????????????????? | | | | | | | | | | | | | | | | | | | | | | | | | | | +----------------------------------------------------+ Best States ------------- Heat Dissipation 49 Energy Generation 25 Energy Capacity 350 Matter Stores 300 Matter Capacity 300 Sight Range 16 Robot Scan Range 14 Terrain Scan Range 16 Terrain Scan Density 10 ECM Strength 1 Cloak Strength 5 Base Temperature (-) 200 EM Shielding 2 Armor Coverage 300 Resistance: EM 15 Utility Shielding 66 Weapon Shielding 66 Evasion (%) 73 Melee Accuracy 10 Recoil Reduction 4 Defensive Hacking 12 Relay Coupler Types 6 Relay Coupler Value 103 Item Schematics ----------------- Axe | -8/Materials | Scanalyzed Wheel | -8/Materials | Scanalyzed Robot Schematics ------------------ None Fabricated ------------ Nothing Alien Tech Used ----------------- None Achievements -------------- A New Friend Assassin Can't Catch Me Dangerous Findings Deadly Force Factory Defaults Hehehe Infiltrator Knowing Is Half The Battle No Signal Part-time Excavator Universal Adapter Challenges ------------ None Game ------ Seed DiametricBombardmentMantle Manual? 0 Play Time 04:27:27 Cumulative 25.9 hours Start 2024.03.08 @ 14:56:47 End 2024.03.11 @ 14:52:06 Sessions 19 Manual Loads 0 Difficulty Rogue Special Mode None Game No. 18 Rogue 14 Adventurer 2 Explorer 2 Win Type - Total 0 Types 0/0/0/0/0/0/0/0/0 Lore% 13 Gallery% 23 Achievement% 23 Wizard Run 0 Options --------- Layout 0 ASCII 0 Keyboard 1 Movement Arrows Keybinds 0 Fullscreen 2 Font 18/SmallcapsGlow Map View 76x50 Zoom Use 0% Tactical HUD 1 Map Filters NONE Filters NONE Steam 1 RUN: 7d3103be-3092-4beb-a1a1-af25cf240ccd